fUSD/lending_fUSD_20250823
["ID","MTS","AMOUNT","RATE_DAILY","PERIOD"]
[380949266,1755912662808,-521.1,0.00013972,2]
[380949267,1755912662819,-400.0,0.00013972,2]
[380949268,1755912662829,-400.0,0.00013972,2]
[380949269,1755912662841,-400.0,0.00013972,2]
[380949270,1755912662851,-400.0,0.00013972,2]
[380949271,1755912662862,-400.0,0.00013972,2]
[380949272,1755912662873,-400.0,0.00013972,2]
[380949273,1755912662884,-446.92,0.00013972,2]
[380949274,1755912662894,-400.0,0.00013972,2]
[380949275,1755912662905,-449.44,0.00013972,2]
[380949276,1755912662915,-675.1,0.00013972,2]
[380949277,1755912662926,-400.0,0.00013972,2]
[380949278,1755912662936,-400.0,0.00013972,2]
[380949279,1755912662947,-151.0,0.00013972,2]
[380949280,1755912662957,-400.0,0.00013972,2]
[380949281,1755912662967,-151.0,0.00013972,2]
[380949282,1755912662978,-400.0,0.00013972,2]
[380949283,1755912662988,-400.0,0.00013972,2]
[380949284,1755912662999,-400.0,0.00013972,2]
[380949285,1755912663010,-400.0,0.00013972,2]
[380949286,1755912663020,-400.0,0.00013972,2]
[380949287,1755912663031,-609.3,0.00013972,2]
[380949288,1755912663041,-400.0,0.00013972,2]
[380949289,1755912663051,-654.03,0.00013972,2]
[380949290,1755912663062,-400.0,0.00013972,2]
[380949291,1755912663072,-400.0,0.00013972,2]
[380949292,1755912663082,-400.0,0.00013972,2]
[380949293,1755912663093,-400.0,0.00013972,2]
[380949294,1755912663103,-400.0,0.00013972,2]
[380949295,1755912663113,-400.0,0.00013972,2]
[380949296,1755912663124,-661.96,0.00013972,2]
[380949297,1755912663134,-400.0,0.00013972,2]
[380949298,1755912663145,-243.253298,0.00013972,2]
[380949299,1755912663155,-568.98,0.00013972,2]
[380949300,1755912663165,-400.0,0.00013972,2]
[380949301,1755912663176,-400.0,0.00013972,2]
[380949302,1755912663187,-400.0,0.00013972,2]
[380949303,1755912663202,-400.0,0.00013972,2]
[380949304,1755912663213,-400.0,0.00013972,2]
[380949305,1755912663224,-400.0,0.00013972,2]
[380949306,1755912663234,-400.0,0.00013972,2]
[380949307,1755912663245,-400.0,0.00013972,2]
[380949308,1755912663256,-400.0,0.00013972,2]
[380949309,1755912663266,-709.86,0.00013972,2]
[380949310,1755912663277,-400.0,0.00013972,2]
[380949311,1755912663287,-437.4,0.00013972,2]
[380949312,1755912663298,-812.84,0.00013972,2]
[380949313,1755912663309,-151.0,0.00013972,2]
[380949314,1755912663319,-586.38,0.00013972,2]
[380949315,1755912663331,-442.27,0.00013972,2]
[380949316,1755912663342,-400.0,0.00013972,2]
[380949317,1755912663352,-562.61,0.00013972,2]
[380949318,1755912663366,-400.0,0.00013972,2]
[380949319,1755912663376,-356.77,0.00013972,2]
[380949320,1755912663387,-400.0,0.00013972,2]
[380949321,1755912663397,-400.0,0.00013972,2]
[380949322,1755912663407,-400.0,0.00013972,2]
[380949323,1755912663419,-400.0,0.00013972,2]
[380949324,1755912663432,-400.0,0.00013972,2]
[380949325,1755912663443,-400.0,0.00013972,2]
[380949326,1755912663453,-400.0,0.00013972,2]
[380949327,1755912663464,-370.72421419,0.00013972,2]
[380949328,1755912663475,-845.65,0.00013972,2]
[380949329,1755912663486,-441.24,0.00013972,2]
[380949330,1755912663496,-529.98,0.00013972,2]
[380949331,1755912663507,-400.0,0.00013972,2]
[380949332,1755912663517,-400.0,0.00013972,2]
[380949333,1755912663527,-151.0,0.00013972,2]
[380949334,1755912663538,-570.39,0.00013972,2]
[380949335,1755912663548,-400.0,0.00013972,2]
[380949336,1755912663559,-460.0,0.00013972,2]
[380949337,1755912663570,-400.0,0.00013972,2]
[380949338,1755912663581,-421.77,0.00013972,2]
[380949339,1755912663591,-400.0,0.00013972,2]
[380949340,1755912663602,-400.0,0.00013972,2]
[380949341,1755912663612,-400.0,0.00013972,2]
[380949342,1755912663622,-400.0,0.00013972,2]
[380949343,1755912663633,-400.0,0.00013972,2]
[380949344,1755912663643,-400.0,0.00013972,2]
[380949345,1755912663653,-400.0,0.00013972,2]
[380949346,1755912663667,-464.48,0.00013972,2]
[380949347,1755912663678,-458.03502339,0.00013972,2]
[380949348,1755912663688,-400.0,0.00013972,2]
[380949349,1755912663698,-151.237577,0.00013972,2]
[380949350,1755912663710,-400.0,0.00013972,2]
[380949351,1755912663721,-400.0,0.00013972,2]
[380949352,1755912663732,-400.0,0.00013972,2]
[380949353,1755912663742,-400.0,0.00013972,2]
[380949354,1755912663754,-400.0,0.00013972,2]
[380949355,1755912663765,-415.36,0.00013972,2]
[380949356,1755912663777,-400.0,0.00013972,2]
[380949357,1755912663788,-530.98,0.00013972,2]
[380949358,1755912663799,-151.0,0.00013972,2]
[380949359,1755912663810,-400.0,0.00013972,2]
[380949360,1755912663820,-400.0,0.00013972,2]
[380949361,1755912663830,-152.775931,0.00013972,2]
[380949362,1755912663840,-400.0,0.00013972,2]
[380949363,1755912663851,-400.0,0.00013972,2]
[380949364,1755912663861,-512.43,0.00013972,2]
[380949365,1755912663871,-400.0,0.00013972,2]
[380949366,1755912663881,-516.79,0.00013972,2]
[380949367,1755912663893,-400.0,0.00013972,2]
[380949368,1755912663904,-400.0,0.00013972,2]
[380949369,1755912663915,-400.0,0.00013972,2]
[380949370,1755912663925,-400.0,0.00013972,2]
[380949371,1755912663936,-400.0,0.00013972,2]
[380949372,1755912663946,-400.0,0.00013972,2]
[380949373,1755912663956,-400.0,0.00013972,2]
[380949374,1755912663966,-400.0,0.00013972,2]
[380949375,1755912663976,-400.0,0.00013972,2]
[380949376,1755912663986,-400.0,0.00013972,2]
[380949377,1755912663996,-409.44,0.00013972,2]
[380949378,1755912664007,-400.0,0.00013972,2]
[380949379,1755912664017,-400.0,0.00013972,2]
[380949380,1755912664028,-400.0,0.00013972,2]
[380949381,1755912664038,-400.0,0.00013972,2]
[380949382,1755912664048,-499.57,0.00013972,2]
[380949383,1755912664058,-400.0,0.00013972,2]
[380949384,1755912664068,-577.94,0.00013972,2]
[380949385,1755912664078,-400.0,0.00013972,2]
[380949386,1755912664088,-476.9,0.00013972,2]
[380949387,1755912664099,-400.0,0.00013972,2]
[380949388,1755912664108,-400.0,0.00013972,2]
[380949389,1755912664119,-400.0,0.00013972,2]
[380949390,1755912664130,-637.7,0.00013972,2]
[380949391,1755912664140,-423.83,0.00013972,2]
[380949392,1755912664157,-400.0,0.00013972,2]
[380949393,1755912664167,-873.47,0.00013972,2]
[380949394,1755912664177,-459.29,0.00013972,2]
[380949395,1755912664187,-571.62,0.00013972,2]
[380949396,1755912664197,-400.0,0.00013972,2]
[380949397,1755912664207,-151.0,0.00013972,2]
[380949398,1755912664218,-400.0,0.00013972,2]
[380949399,1755912664228,-549.98,0.00013972,2]
[380949400,1755912664239,-409.95,0.00013972,2]
[380949401,1755912664248,-400.0,0.00013972,2]
[380949402,1755912664258,-1704.41,0.00013972,2]
[380949403,1755912664268,-400.0,0.00013972,2]
[380949404,1755912664279,-400.0,0.00013972,2]
[380949405,1755912664288,-400.0,0.00013972,2]
[380949406,1755912664298,-400.0,0.00013972,2]
[380949407,1755912664319,-400.0,0.00013972,2]
[380949408,1755912664573,-531.47,0.00013972,2]
[380949409,1755912664584,-400.0,0.00013972,2]
[380949410,1755912664593,-400.0,0.00013972,2]
[380949411,1755912664603,-400.0,0.00013972,2]
[380949412,1755912664612,-400.0,0.00013972,2]
[380949413,1755912664622,-400.0,0.00013972,2]
[380949414,1755912664631,-456.18,0.00013972,2]
[380949415,1755912664641,-400.0,0.00013972,2]
[380949416,1755912664650,-400.0,0.00013972,2]
[380949417,1755912664660,-400.0,0.00013972,2]
[380949418,1755912664669,-400.0,0.00013972,2]
[380949419,1755912664679,-890.29,0.00013972,2]
[380949420,1755912664688,-406.1,0.00013972,2]
[380949421,1755912664697,-400.0,0.00013972,2]
[380949422,1755912664706,-400.0,0.00013972,2]
[380949423,1755912664715,-400.0,0.00013972,2]
[380949424,1755912664729,-400.0,0.00013972,2]
[380949425,1755912664738,-421.32,0.00013972,2]
[380949426,1755912664748,-400.0,0.00013972,2]
[380949427,1755912664757,-478.43,0.00013972,2]
[380949428,1755912664767,-400.0,0.00013972,2]
[380949429,1755912664776,-400.0,0.00013972,2]
[380949430,1755912664786,-487.04,0.00013972,2]
[380949431,1755912664795,-400.0,0.00013972,2]
[380949432,1755912664805,-595.85,0.00013972,2]
[380949433,1755912664815,-400.0,0.00013972,2]
[380949434,1755912664824,-510.81,0.00013972,2]
[380949435,1755912664834,-542.43,0.00013972,2]
[380949436,1755912664843,-451.04,0.00013972,2]
[380949437,1755912664853,-400.0,0.00013972,2]
[380949438,1755912664863,-477.02,0.00013972,2]
[380949439,1755912664874,-151.0,0.00013972,2]
[380949440,1755912664884,-667.8,0.00013972,2]
[380949441,1755912664894,-151.0,0.00013972,2]
[380949442,1755912664904,-400.0,0.00013972,2]
[380949443,1755912664916,-400.0,0.00013972,2]
[380949444,1755912664925,-400.0,0.00013972,2]
[380949445,1755912664935,-400.0,0.00013972,2]
[380949446,1755912664944,-754.76,0.00013972,2]
[380949447,1755912664954,-400.0,0.00013972,2]
[380949448,1755912664966,-151.0,0.00013972,2]
[380949449,1755912664976,-510.89,0.00013972,2]
[380949450,1755912664985,-1030.1,0.00013972,2]
[380949451,1755912664995,-151.0,0.00013972,2]
[380949452,1755912665004,-151.0,0.00013972,2]
[380949453,1755912665014,-400.0,0.00013972,2]
[380949454,1755912665024,-436.99,0.00013972,2]
[380949455,1755912665034,-657.25,0.00013972,2]
[380949456,1755912665046,-151.0,0.00013972,2]
[380949457,1755912665056,-400.0,0.00013972,2]
[380949458,1755912665065,-400.0,0.00013972,2]
[380949459,1755912665076,-400.0,0.00013972,2]
[380949460,1755912665096,-400.0,0.00013972,2]
[380949461,1755912665115,-400.0,0.00013972,2]
[380949462,1755912665126,-417.45,0.00013972,2]
[380949463,1755912665136,-400.0,0.00013972,2]
[380949464,1755912665146,-400.0,0.00013972,2]
[380949465,1755912665163,-1067.81,0.00013972,2]
[380949466,1755912665172,-400.0,0.00013972,2]
[380949467,1755912665182,-400.0,0.00013972,2]
[380949468,1755912665192,-151.0,0.00013972,2]
[380949469,1755912665201,-400.0,0.00013972,2]
[380949470,1755912665212,-400.0,0.00013972,2]
[380949471,1755912665224,-151.0,0.00013972,2]
[380949472,1755912665235,-400.0,0.00013972,2]
[380949473,1755912665245,-400.0,0.00013972,2]
[380949474,1755912665254,-578.42,0.00013972,2]
[380949475,1755912665264,-786.01,0.00013972,2]
[380949476,1755912665274,-151.0,0.00013972,2]
[380949477,1755912665284,-400.0,0.00013972,2]
[380949478,1755912665295,-400.0,0.00013972,2]
[380949479,1755912665305,-1145.67,0.00013972,2]
[380949480,1755912665315,-624.95,0.00013972,2]
[380949481,1755912665325,-400.0,0.00013972,2]
[380949482,1755912665337,-400.0,0.00013972,2]
[380949483,1755912665347,-400.0,0.00013972,2]
[380949484,1755912665357,-400.0,0.00013972,2]
[380949485,1755912665370,-439.98,0.00013972,2]
[380949486,1755912665380,-400.0,0.00013972,2]
[380949487,1755912665389,-734.24,0.00013972,2]
[380949488,1755912665399,-400.0,0.00013972,2]
[380949489,1755912665409,-716.27,0.00013972,2]
[380949490,1755912665419,-400.0,0.00013972,2]
[380949491,1755912665428,-400.0,0.00013972,2]
[380949492,1755912665438,-677.21,0.00013972,2]
[380949493,1755912665447,-400.0,0.00013972,2]
[380949494,1755912665459,-400.0,0.00013972,2]
[380949495,1755912665468,-400.0,0.00013972,2]
[380949496,1755912665478,-503.77,0.00013972,2]
[380949497,1755912665488,-400.0,0.00013972,2]
[380949498,1755912665498,-400.0,0.00013972,2]
[380949499,1755912665507,-831.56,0.00013972,2]
[380949500,1755912665517,-651.98,0.00013972,2]
[380949501,1755912665526,-742.35,0.00013972,2]
[380949502,1755912665536,-400.0,0.00013972,2]
[380949503,1755912665545,-541.87,0.00013972,2]
[380949504,1755912665554,-400.0,0.00013972,2]
[380949505,1755912665564,-400.0,0.00013972,2]
[380949506,1755912665573,-462.17,0.00013972,2]
[380949507,1755912665583,-400.0,0.00013972,2]
[380949508,1755912665597,-422.39,0.00013972,2]
[380949509,1755912665610,-400.0,0.00013972,2]
[380949510,1755912665620,-400.0,0.00013972,2]
[380949511,1755912665629,-400.0,0.00013972,2]
[380949512,1755912665638,-535.7,0.00013972,2]
[380949513,1755912665648,-400.0,0.00013972,2]
[380949514,1755912665659,-400.0,0.00013972,2]
[380949515,1755912665668,-601.7,0.00013972,2]
[380949516,1755912665678,-598.88,0.00013972,2]
[380949517,1755912665687,-400.0,0.00013972,2]
[380949518,1755912665697,-729.0,0.00013972,2]
[380949519,1755912665706,-400.0,0.00013972,2]
[380949520,1755912665716,-151.0,0.00013972,2]
[380949521,1755912665725,-560.98,0.00013972,2]
[380949522,1755912665734,-482.06,0.00013972,2]
[380949523,1755912665744,-400.0,0.00013972,2]
[380949524,1755912665753,-400.0,0.00013972,2]
[380949525,1755912665763,-151.0,0.00013972,2]
[380949526,1755912665772,-648.16,0.00013972,2]
[380949527,1755912665781,-400.0,0.00013972,2]
[380949528,1755912665789,-400.0,0.00013972,2]
[380949529,1755912665797,-151.0,0.00013972,2]
[380949530,1755912665805,-485.12,0.00013972,2]
[380949531,1755912665814,-581.45,0.00013972,2]
[380949532,1755912665823,-151.0,0.00013972,2]
[380949533,1755912665834,-483.72,0.00013972,2]
[380949534,1755912665851,-400.0,0.00013972,2]
[380949535,1755912665860,-463.13,0.00013972,2]
[380949536,1755912665870,-607.66,0.00013972,2]
[380949537,1755912665880,-400.0,0.00013972,2]
[380949538,1755912665889,-400.0,0.00013972,2]
[380949539,1755912665898,-151.0,0.00013972,2]
[380949540,1755912665908,-506.32,0.00013972,2]
[380949541,1755912665920,-400.0,0.00013972,2]
[380949542,1755912665929,-657.0,0.00013972,2]
[380949543,1755912665938,-460.21,0.00013972,2]
[380949544,1755912665947,-664.59,0.00013972,2]
[380949545,1755912665957,-400.0,0.00013972,2]
[380949546,1755912665966,-518.18,0.00013972,2]
[380949547,1755912665976,-151.0,0.00013972,2]
[380949548,1755912665985,-548.04,0.00013972,2]
[380949549,1755912665995,-400.0,0.00013972,2]
[380949550,1755912666005,-400.0,0.00013972,2]
[380949551,1755912666015,-538.71,0.00013972,2]
[380949552,1755912666025,-400.0,0.00013972,2]
[380949553,1755912666035,-623.23,0.00013972,2]
[380949554,1755912666046,-490.94,0.00013972,2]
[380949555,1755912666056,-400.0,0.00013972,2]
[380949556,1755912666065,-400.0,0.00013972,2]
[380949557,1755912666075,-460.0,0.00013972,2]
[380949558,1755912666084,-407.86,0.00013972,2]
[380949559,1755912666094,-492.11,0.00013972,2]
[380949560,1755912666103,-400.0,0.00013972,2]
[380949561,1755912666113,-585.32,0.00013972,2]
[380949562,1755912666122,-704.8,0.00013972,2]
[380949563,1755912666132,-400.0,0.00013972,2]
[380949564,1755912666141,-201.13,0.00013972,2]
[380949565,1755912666151,-400.0,0.00013972,2]
[380949566,1755912666163,-536.25,0.00013972,2]
[380949567,1755912666173,-151.0,0.00013972,2]
[380949568,1755912666183,-419.51,0.00013972,2]
[380949569,1755912666192,-400.0,0.00013972,2]
[380949570,1755912666201,-400.0,0.00013972,2]
[380949571,1755912666211,-416.08,0.00013972,2]
[380949572,1755912666221,-400.0,0.00013972,2]
[380949573,1755912666230,-552.15,0.00013972,2]
[380949574,1755912666240,-400.0,0.00013972,2]
[380949575,1755912666250,-151.0,0.00013972,2]
[380949576,1755912666260,-685.75,0.00013972,2]
[380949577,1755912666271,-254.10269,0.00013972,2]
[380949578,1755912666281,-151.0,0.00013972,2]
[380949579,1755912666291,-151.0,0.00013972,2]
[380949580,1755912666300,-400.0,0.00013972,2]
[380949581,1755912666310,-400.0,0.00013972,2]
[380949582,1755912666320,-151.0,0.00013972,2]
[380949583,1755912666329,-400.0,0.00013972,2]
[380949584,1755912666339,-400.0,0.00013972,2]
[380949585,1755912666348,-1265.94,0.00013972,2]
[380949586,1755912666357,-400.0,0.00013972,2]
[380949587,1755912666371,-475.58,0.00013972,2]
[380949588,1755912666380,-400.0,0.00013972,2]
[380949589,1755912666390,-400.0,0.00013972,2]
[380949590,1755912666400,-151.0,0.00013972,2]
[380949591,1755912666412,-151.0,0.00013972,2]
[380949592,1755912666422,-151.0,0.00013972,2]
[380949593,1755912666433,-151.0,0.00013972,2]
[380949594,1755912666442,-151.0,0.00013972,2]
[380949595,1755912666452,-433.85,0.00013972,2]
[380949596,1755912666462,-151.0,0.00013972,2]
[380949597,1755912666471,-151.0,0.00013972,2]
[380949598,1755912666480,-151.0,0.00013972,2]
[380949599,1755912666490,-400.0,0.00013972,2]
[380949600,1755912666499,-400.0,0.00013972,2]
[380949601,1755912666509,-400.0,0.00013972,2]
[380949602,1755912666519,-400.0,0.00013972,2]
[380949603,1755912666529,-400.0,0.00013972,2]
[380949604,1755912666538,-151.0,0.00013972,2]
[380949605,1755912666549,-151.0,0.00013972,2]
[380949606,1755912666558,-400.0,0.00013972,2]
[380949607,1755912666568,-400.0,0.00013972,2]
[380949608,1755912666577,-151.0,0.00013972,2]
[380949609,1755912666587,-400.0,0.00013972,2]
[380949610,1755912666596,-318.54118424,0.00013972,2]
[380949611,1755912666606,-400.0,0.00013972,2]
[380949612,1755912666616,-151.0,0.00013972,2]
[380949613,1755912666625,-151.0,0.00013972,2]
[380949614,1755912666634,-400.0,0.00013972,2]
[380949615,1755912666644,-543.91,0.00013972,2]
[380949616,1755912666655,-428.36,0.00013972,2]
[380949617,1755912666668,-151.0,0.00013972,2]
[380949618,1755912666678,-427.61,0.00013972,2]
[380949619,1755912666687,-1000.0,0.00013972,2]
[380949620,1755912666697,-400.0,0.00013972,2]
[380949621,1755912666707,-400.0,0.00013972,2]
[380949622,1755912666716,-400.0,0.00013972,2]
[380949623,1755912666725,-763.66,0.00013972,2]
[380949624,1755912666735,-151.0,0.00013972,2]
[380949625,1755912666745,-400.0,0.00013972,2]
[380949626,1755912666754,-400.0,0.00013972,2]
[380949627,1755912666763,-151.0,0.00013972,2]
[380949628,1755912666772,-400.0,0.00013972,2]
[380949629,1755912666782,-400.0,0.00013972,2]
[380949630,1755912666793,-432.07,0.00013972,2]
[380949631,1755912666803,-400.0,0.00013972,2]
[380949632,1755912666812,-482.08,0.00013972,2]
[380949633,1755912666822,-552.38,0.00013972,2]
[380949634,1755912666832,-406.07604648,0.00013972,2]
[380949635,1755912666842,-400.0,0.00013972,2]
[380949636,1755912666851,-400.0,0.00013972,2]
[380949637,1755912666861,-292.7,0.00013972,2]
[380949638,1755912666872,-793.95,0.00013972,2]
[380949639,1755912666881,-400.0,0.00013972,2]
[380949640,1755912666891,-166.15,0.00013972,2]
[380949641,1755912666900,-400.0,0.00013972,2]
[380949642,1755912666910,-400.0,0.00013972,2]
[380949643,1755912666919,-400.0,0.00013972,2]
[380949644,1755912666928,-400.0,0.00013972,2]
[380949645,1755912666938,-400.0,0.00013972,2]
[380949646,1755912666947,-328.88,0.00013972,2]
[380949647,1755912666956,-267.86,0.00013972,2]
[380949648,1755912666965,-476.99,0.00013972,2]
[380949649,1755912666974,-400.0,0.00013972,2]
[380949650,1755912666983,-376.73,0.00013972,2]
[380949651,1755912666995,-400.0,0.00013972,2]
[380949652,1755912667005,-400.0,0.00013972,2]
[380949653,1755912667014,-400.0,0.00013972,2]
[380949654,1755912667023,-150.31,0.00013972,2]
[380949655,1755912667033,-400.0,0.00013972,2]
[380949656,1755912667043,-543.86,0.00013972,2]
[380949657,1755912667052,-400.0,0.00013972,2]
[380949658,1755912667061,-772.08,0.00013972,2]
[380949659,1755912667070,-707.33,0.00013972,2]
[380949660,1755912667079,-607.86,0.00013972,2]
[380949661,1755912667089,-577.68,0.00013972,2]
[380949662,1755912667098,-400.0,0.00013972,2]
[380949663,1755912667107,-446.17,0.00013972,2]
[380949664,1755912667116,-499.75,0.00013972,2]
[380949665,1755912667125,-752.86,0.00013972,2]
[380949666,1755912667135,-475.34,0.00013972,2]
[380949667,1755912667144,-156.17461,0.00013972,2]
[380949668,1755912667153,-400.0,0.00013972,2]
[380949669,1755912667164,-602.1,0.00013972,2]
[380949670,1755912667173,-496.62,0.00013972,2]
[380949671,1755912667183,-480.32,0.00013972,2]
[380949672,1755912667192,-400.0,0.00013972,2]
[380949673,1755912667202,-400.0,0.00013972,2]
[380949674,1755912667211,-400.0,0.00013972,2]
[380949675,1755912667221,-400.0,0.00013972,2]
[380949676,1755912667231,-633.62,0.00013972,2]
[380949677,1755912667240,-400.0,0.00013972,2]
[380949678,1755912667250,-400.0,0.00013972,2]
[380949679,1755912667259,-400.0,0.00013972,2]
[380949680,1755912667269,-222.03253598,0.00013972,2]
[380949681,1755912667279,-400.0,0.00013972,2]
[380949682,1755912667288,-400.0,0.00013972,2]
[380949683,1755912667298,-614.22,0.00013972,2]
[380949684,1755912667310,-560.58,0.00013972,2]
[380949685,1755912667320,-400.0,0.00013972,2]
[380949686,1755912667330,-428.79,0.00013972,2]
[380949687,1755912667340,-416.01,0.00013972,2]
[380949688,1755912667350,-400.0,0.00013972,2]
[380949689,1755912667360,-400.0,0.00013972,2]
[380949690,1755912667371,-400.0,0.00013972,2]
[380949691,1755912667381,-425.3,0.00013972,2]
[380949692,1755912667390,-400.0,0.00013972,2]
[380949693,1755912667399,-400.0,0.00013972,2]
[380949694,1755912667411,-508.68,0.00013972,2]
[380949695,1755912667420,-535.36,0.00013972,2]
[380949696,1755912667429,-400.0,0.00013972,2]
[380949697,1755912667439,-193.17723,0.00013972,2]
[380949698,1755912667448,-400.0,0.00013972,2]
[380949699,1755912667457,-346.39,0.00013972,2]
[380949700,1755912667466,-400.0,0.00013972,2]
[380949701,1755912667476,-470.91,0.00013972,2]
[380949702,1755912667486,-239.7,0.00013972,2]
[380949703,1755912667495,-254.0,0.00013972,2]
[380949704,1755912667505,-418.5,0.00013972,2]
[380949705,1755912667514,-452.5,0.00013972,2]
[380949706,1755912667524,-400.0,0.00013972,2]
[380949707,1755912667534,-400.0,0.00013972,2]
[380949708,1755912667544,-400.0,0.00013972,2]
[380949709,1755912667554,-747.8,0.00013972,2]
[380949710,1755912667564,-400.0,0.00013972,2]
[380949711,1755912667573,-400.0,0.00013972,2]
[380949712,1755912667585,-433.94,0.00013972,2]
[380949713,1755912667595,-400.0,0.00013972,2]
[380949714,1755912667604,-400.0,0.00013972,2]
[380949715,1755912667614,-400.0,0.00013972,2]
[380949716,1755912667624,-400.0,0.00013972,2]
[380949717,1755912667634,-1000.0,0.00013972,2]
[380949718,1755912667644,-472.48,0.00013972,2]
[380949719,1755912667654,-400.0,0.00013972,2]
[380949720,1755912667665,-400.0,0.00013972,2]
[380949721,1755912667674,-400.0,0.00013972,2]
[380949722,1755912667684,-855.010025,0.00013972,2]
[380949723,1755912667693,-400.0,0.00013972,2]
[380949724,1755912667702,-461.6,0.00013972,2]
[380949725,1755912667712,-400.0,0.00013972,2]
[380949726,1755912667722,-332.04481264,0.00013972,2]
[380949727,1755912667731,-400.0,0.00013972,2]
[380949728,1755912667741,-400.0,0.00013972,2]
[380949729,1755912667750,-400.0,0.00013972,2]
[380949730,1755912667760,-631.75,0.00013972,2]
[380949731,1755912667769,-400.0,0.00013972,2]
[380949732,1755912667779,-400.0,0.00013972,2]
[380949733,1755912667790,-479.25,0.00013972,2]
[380949734,1755912667800,-400.0,0.00013972,2]
[380949735,1755912667810,-400.0,0.00013972,2]
[380949736,1755912667819,-475.9,0.00013972,2]
[380949737,1755912667829,-737.35,0.00013972,2]
[380949738,1755912667838,-473.06,0.00013972,2]
[380949739,1755912667847,-400.0,0.00013972,2]
[380949740,1755912667857,-400.0,0.00013972,2]
[380949741,1755912667866,-464.53,0.00013972,2]
[380949742,1755912667876,-400.0,0.00013972,2]
[380949743,1755912667885,-400.0,0.00013972,2]
[380949744,1755912667895,-400.0,0.00013972,2]
[380949745,1755912667904,-605.41,0.00013972,2]
[380949746,1755912667915,-451.38,0.00013972,2]
[380949747,1755912667925,-763.68,0.00013972,2]
[380949748,1755912667935,-400.0,0.00013972,2]
[380949749,1755912667946,-400.0,0.00013972,2]
[380949750,1755912667956,-400.0,0.00013972,2]
[380949751,1755912667966,-400.0,0.00013972,2]
[380949752,1755912667976,-400.0,0.00013972,2]
[380949753,1755912667986,-400.0,0.00013972,2]
[380949754,1755912667996,-400.0,0.00013972,2]
[380949755,1755912668006,-400.0,0.00013972,2]
[380949756,1755912668016,-400.0,0.00013972,2]
[380949757,1755912668027,-437.52,0.00013972,2]
[380949758,1755912668036,-1076.1,0.00013972,2]
[380949759,1755912668046,-496.31,0.00013972,2]
[380949760,1755912668056,-400.0,0.00013972,2]
[380949761,1755912668066,-400.0,0.00013972,2]
[380949762,1755912668077,-400.0,0.00013972,2]
[380949763,1755912668087,-400.0,0.00013972,2]
[380949764,1755912668096,-517.63,0.00013972,2]
[380949765,1755912668106,-400.0,0.00013972,2]